bitfinex/quotes_ETHUSD_20250126
["timestamp","ask_amount","ask_price","bid_price","bid_amount"]
[1737889531167,0.03876709,3306.1,3305.9,0.7806]
[1737889531378,0.9229,3306.8,3305.9,0.7806]
[1737889531767,0.03876709,3306.7,3305.9,0.7806]
[1737889531968,0.4349338,3306.7,3305.9,0.7806]
[1737889532805,0.5479514,3306.7,3305.9,0.7806]
[1737889534443,0.15178469,3306.7,3305.9,0.7806]
[1737889534911,0.15187987,3306.6,3305.9,0.7806]
[1737889535114,5.39,3307.0,3305.9,0.7806]
[1737889535257,0.15187987,3306.5,3305.9,0.7806]
[1737889535457,8.39,3307.3,3305.9,0.7806]
[1737889535672,0.15187987,3306.4,3305.9,0.7806]
[1737889535959,0.90097578,3307.2,3305.9,0.7806]
[1737889536511,0.15187987,3307.1,3305.9,0.7806]
[1737889537909,0.15187987,3307.1,3306.0,0.78224674]
[1737889540759,3.0,3307.7,3306.0,0.752]
[1737889540960,0.15205921,3307.0,3306.0,0.752]
[1737889541179,0.839,3307.6,3306.0,0.752]
[1737889541389,0.15205556,3306.9,3306.0,0.752]
[1737889541573,3.0,3307.5,3306.0,0.752]
[1737889542137,0.15205556,3307.4,3306.0,0.752]
[1737889542336,0.37667748,3307.3,3306.0,0.752]
[1737889542838,0.15205556,3307.2,3306.0,0.752]
[1737889545906,0.15205556,3307.2,3306.1,0.03024365]
[1737889546238,0.15205556,3307.2,3305.9,0.752]
[1737889546438,0.15205556,3307.2,3306.1,0.752]
[1737889548130,0.15205556,3307.2,3306.3,0.752]
[1737889548332,3.0,3307.7,3306.5,0.752]
[1737889548536,0.15212145,3307.1,3306.5,0.752]
[1737889548805,0.839,3307.6,3306.5,0.752]
[1737889549005,0.15216536,3307.0,3306.5,0.752]
[1737889549345,0.15216536,3306.9,3306.5,0.752]
[1737889549540,0.839,3307.6,3306.5,0.752]
[1737889549839,0.15216902,3306.8,3306.5,0.752]
[1737889550145,0.15216902,3306.7,3306.5,0.78224038]
[1737889550328,0.3839,3307.5,3306.5,0.78224038]
[1737889550533,0.15221293,3306.6,3306.5,0.752]
[1737889550844,0.3839,3307.5,3306.5,0.752]
[1737889551244,0.15222391,3307.4,3306.5,0.752]
[1737889560669,5.54222391,3307.4,3306.5,0.752]
[1737889560866,0.59261239,3307.3,3306.5,0.752]
[1737889561067,0.1523483,3307.2,3306.5,0.752]
[1737889562743,0.1523483,3307.2,3305.5,0.7918]
[1737889562944,5.39,3307.1,3305.5,0.7918]
[1737889563143,5.54227147,3307.1,3305.5,0.7918]
[1737889563342,0.55422715,3307.0,3305.9,0.7918]
[1737889563562,5.39,3306.9,3305.9,0.7918]
[1737889563863,5.54227147,3306.9,3305.9,0.7918]
[1737889564648,3.0,3306.8,3305.9,0.7918]
[1737889564839,0.15204825,3306.7,3305.9,0.7918]
[1737889565044,0.31520483,3306.6,3305.9,0.7918]
[1737889565244,0.1519421,3306.5,3305.9,0.7918]
[1737889565439,5.5419421,3306.5,3305.9,0.7918]
[1737889567929,5.5419421,3306.5,3305.3,0.7514]
[1737889571439,0.60366445,3306.3,3305.3,0.7514]
[1737889571640,0.15167121,3306.2,3305.3,0.7514]
[1737889575583,5.54167121,3306.2,3305.3,0.7514]
[1737889579150,4.60488343,3306.2,3305.3,0.7514]
[1737889579372,0.1466155,3306.1,3305.3,0.7514]
[1737889587421,4.75149893,3306.1,3305.3,0.7514]
[1737889590726,0.55,3306.0,3305.3,0.7514]
[1737889591021,0.69647271,3306.0,3305.3,0.7514]
[1737889599033,0.14647271,3306.0,3305.3,0.7514]
[1737889599331,0.14647271,3306.0,3305.5,0.7667]
[1737889599634,3.0,3306.8,3305.5,0.7667]
[1737889599824,0.42344236,3306.7,3305.5,0.7667]
[1737889600133,0.55,3306.6,3305.5,0.7667]
[1737889600322,0.55,3306.6,3305.6,0.0302481]
[1737889600633,0.55,3306.4,3305.6,0.0302481]
[1737889601016,0.55,3306.6,3305.6,0.0302481]
[1737889601534,0.55,3306.4,3305.6,0.0302481]
[1737889601933,0.42344236,3306.7,3305.6,0.0302481]
[1737889601934,0.55,3306.6,3305.6,0.0302481]
[1737889602144,0.13664646,3306.3,3305.6,0.0302481]
[1737889602302,0.55,3306.7,3305.6,0.0302481]
[1737889602495,0.13664646,3306.6,3305.6,0.0302481]
[1737889602929,0.38414271,3306.7,3305.6,0.0302481]
[1737889603129,0.13671998,3306.5,3305.6,0.03024755]
[1737889603495,3.0,3306.8,3305.7,0.7667]
[1737889604000,0.13216877,3306.7,3305.7,0.7667]
[1737889604735,0.13216877,3306.7,3305.8,0.03024557]
[1737889610035,0.13216877,3306.7,3305.9,0.7667]
[1737889613739,0.55,3306.6,3305.9,0.7667]
[1737889614049,0.68234519,3306.6,3305.5,0.7667]
[1737889617188,3.55,3306.4,3305.5,0.7667]
[1737889617983,0.12351875,3306.3,3305.5,0.7969498]
[1737889619935,4.60488343,3306.5,3305.5,0.7969498]
[1737889620247,0.12349302,3306.2,3305.5,0.7969498]
[1737889620449,0.12361795,3306.4,3305.5,0.7969498]
[1737889620649,4.60488343,3306.5,3305.5,0.7969498]
[1737889620858,0.12361795,3306.3,3305.5,0.7969498]
[1737889621067,4.60488343,3306.5,3305.5,0.7969498]
[1737889621874,0.12361795,3306.4,3305.5,0.7969498]
[1737889622568,0.12361795,3306.4,3304.9,0.34883799]
[1737889622569,0.12361795,3306.4,3305.7,0.7515]
[1737889622776,0.12361795,3306.4,3305.8,0.78174315]
[1737889623442,3.55,3307.1,3305.8,0.78174315]
[1737889623644,0.12365471,3306.3,3305.8,0.78174315]
[1737889623954,4.60488343,3307.0,3305.8,0.78174315]
[1737889624153,4.60488343,3307.0,3306.1,1.3516724]
[1737889624154,0.12365471,3306.2,3306.1,1.3516724]
[1737889624553,4.60488343,3307.0,3306.2,0.7515]
[1737889624754,0.12365471,3306.9,3306.2,0.7515]
[1737889625065,0.12365471,3306.9,3306.3,0.78174256]
[1737889627588,0.12365471,3306.9,3306.3,0.7515]
[1737889628876,0.12365471,3306.9,3306.4,0.78173851]
[1737889629244,0.12365471,3306.9,3306.4,0.7515]
[1737889629480,3.0,3307.3,3306.4,0.7515]
[1737889629645,0.12398904,3306.8,3306.4,0.7515]
[1737889629845,7.60488343,3307.3,3306.4,0.7515]
[1737889630044,0.12398904,3306.7,3306.4,0.7515]
[1737889630240,7.60488343,3307.3,3306.4,0.7515]
[1737889630577,0.12398904,3307.2,3306.4,0.7515]
[1737889630983,0.89687629,3307.2,3306.4,0.7515]
[1737889631274,0.55,3307.1,3306.4,0.7515]
[1737889631865,0.12392659,3307.0,3306.4,0.7515]
[1737889634573,0.12392659,3307.0,3306.5,0.78174392]
[1737889634897,7.60488343,3307.3,3306.5,0.78174392]
[1737889635056,0.12391924,3306.9,3306.5,0.78174392]
[1737889635258,7.60488343,3307.3,3306.5,0.78174392]
[1737889635579,7.60488343,3307.3,3306.5,0.7515]
[1737889635898,0.12395599,3307.2,3306.5,0.7515]
[1737889640903,4.72883942,3307.2,3306.5,0.7515]
[1737889646183,4.72883942,3307.2,3306.6,0.03024002]
[1737889646383,4.72883942,3307.2,3306.7,0.7638]
[1737889656596,0.12395599,3307.2,3306.7,0.7638]
[1737889656901,3.0,3307.8,3306.9,0.7888]
[1737889657302,0.12068982,3307.7,3306.9,0.7888]
[1737889661629,4.60488343,3307.6,3306.9,0.7888]
[1737889662344,0.12068982,3307.5,3306.9,0.7888]
[1737889663115,0.12068982,3307.5,3307.0,0.03023593]
[1737889663320,0.12068982,3307.5,3307.1,0.7585]
[1737889679681,4.72557325,3307.5,3307.1,0.7585]
[1737889682592,4.72557325,3307.5,3306.6,1.45057617]
[1737889682878,4.72557325,3307.5,3306.6,0.8145]
[1737889683785,3.55,3307.4,3306.6,0.8145]
[1737889683948,3.55,3307.4,3306.4,0.8145]
[1737889684148,0.55,3307.2,3306.4,0.8145]
[1737889684358,4.60488343,3307.1,3306.4,0.8145]
[1737889684657,3.0,3307.0,3306.1,0.8145]
[1737889685068,0.12074861,3306.9,3306.1,0.8145]
[1737889686475,5.49819524,3306.9,3305.2,0.8145]
[1737889686643,5.49819524,3306.9,3305.8,0.59203085]
[1737889686849,5.49819524,3306.9,3305.8,1.40653085]
[1737889687051,3.55,3306.8,3305.8,0.8145]
[1737889687283,0.55,3306.6,3305.8,0.8145]
[1737889687779,0.12039597,3306.5,3305.8,0.8145]
[1737889691461,4.7252794,3306.5,3305.8,0.8145]
[1737889692798,5.25280734,3306.5,3305.8,0.8145]
[1737889693485,5.25280734,3306.5,3305.6,0.8145]
[1737889694571,0.55,3306.4,3305.6,0.8145]
[1737889694952,0.120249,3306.3,3305.6,0.8145]
[1737889697389,4.60488343,3306.2,3305.6,0.8145]
[1737889697885,0.120249,3306.1,3305.6,0.8145]
[1737889698992,4.72513243,3306.1,3305.6,0.8145]
[1737889699181,5.19764567,3306.1,3304.9,0.8327]
[1737889699368,4.72513243,3306.1,3304.9,0.8327]
[1737889699779,4.72513243,3306.1,3305.2,0.8327]
[1737889701860,4.72513243,3306.1,3305.4,0.813]
[1737889705289,4.72513243,3306.1,3305.4,0.84325093]
[1737889706300,4.72513243,3306.1,3305.5,0.03024893]
[1737889706864,4.72513243,3306.1,3305.4,0.813]
[1737889714747,4.72513243,3306.1,3305.1,1.41905781]
[1737889715518,4.60488343,3306.1,3305.1,1.41905781]
[1737889715723,0.11994943,3306.0,3305.1,1.41905781]
[1737889717309,3.59243272,3306.0,3305.1,1.41905781]
[1737889718625,3.59243272,3306.0,3305.1,0.8176]
[1737889720199,3.11994943,3306.0,3305.2,0.03025327]
[1737889720400,3.11994943,3306.0,3305.1,0.8176]
[1737889720931,3.11994943,3306.0,3305.2,0.03025236]
[1737889722041,0.11994943,3306.0,3305.3,0.8022]
[1737889722337,0.11994943,3306.0,3305.4,0.03024945]
[1737889723839,0.11994943,3306.0,3305.3,0.83244948]
[1737889734619,4.60488343,3306.8,3305.3,0.83244948]
[1737889735049,0.11576536,3306.7,3305.3,0.83244948]
[1737889735433,0.11576536,3306.7,3305.3,0.8022]
[1737889735738,0.47206488,3306.6,3305.3,0.8022]
[1737889735941,0.11586826,3306.6,3305.3,0.8022]
[1737889736254,4.60488343,3306.8,3305.4,0.03024681]
[1737889736554,0.11586826,3306.7,3305.4,0.03024681]
[1737889737453,3.11586826,3306.7,3305.7,0.59894509]
[1737889738953,4.60488343,3306.6,3305.7,0.59894509]
[1737889739356,0.11586826,3306.5,3305.7,0.59894509]
[1737889741258,3.88794343,3306.5,3305.3,0.8022]
[1737889742450,3.88794343,3306.5,3305.1,0.7858]
[1737889743173,3.88794343,3306.5,3305.2,0.60228465]
[1737889744820,3.0,3306.3,3305.2,0.60228465]
[1737889745219,0.11591236,3306.2,3305.2,0.60228465]
[1737889745760,0.11591236,3306.2,3305.3,0.03024947]
[1737889746865,0.11591236,3306.2,3305.2,0.60228465]
[1737889747227,0.11591236,3306.2,3305.3,0.03024946]
[1737889747520,0.11591236,3306.2,3305.2,0.60228465]
[1737889748231,0.11591236,3306.2,3305.2,0.76079312]
[1737889749760,0.11591236,3306.2,3305.3,0.03024947]
[1737889750269,0.11591236,3306.2,3305.2,0.76079312]
[1737889750767,4.72079579,3306.2,3305.2,0.76079312]
[1737889751141,4.72079579,3306.2,3305.3,0.03024948]
[1737889751349,4.72079579,3306.2,3305.2,0.76079312]
[1737889751549,4.72079579,3306.2,3305.3,0.18490879]
[1737889754655,4.72079579,3306.2,3305.4,0.7858]
[1737889754853,4.72079579,3306.2,3305.5,0.03024638]
[1737889768072,4.72079579,3306.2,3305.4,0.7858]
[1737889768663,0.11591236,3306.2,3305.4,0.7858]
[1737889769073,0.11596749,3306.1,3305.5,0.03024663]
[1737889769252,4.60488343,3306.6,3305.5,0.03024663]
[1737889769460,0.87645583,3306.5,3305.5,0.03024663]
[1737889774794,0.11596749,3306.5,3305.6,3.7523]
[1737889774990,0.11596749,3306.5,3305.8,0.7523]
[1737889775171,3.0,3307.1,3305.9,0.03024104]
[1737889775367,7.60488343,3307.1,3305.9,0.03024104]
[1737889775688,0.1082006,3307.0,3305.9,0.03024104]
[1737889775896,0.1082006,3307.0,3305.8,0.7523]
[1737889776074,0.1082006,3307.0,3306.1,0.61355036]
[1737889776260,0.879509,3307.0,3306.1,0.61355036]
[1737889776461,0.879509,3307.0,3305.8,0.7523]
[1737889776695,0.879509,3307.0,3305.6,3.0]
[1737889776891,0.879509,3307.0,3305.5,5.24]
[1737889777091,0.7713084,3307.0,3305.5,5.24]
[1737889777397,3.0,3306.8,3305.6,0.61373183]
[1737889777587,3.0,3306.8,3305.5,5.24]
[1737889777787,0.1082522,3306.7,3305.5,5.24]
[1737889780501,4.60488343,3306.6,3305.3,0.61509147]
[1737889780868,0.1082522,3306.5,3305.3,0.61509147]
[1737889781079,0.47131356,3306.4,3305.3,0.61509147]
[1737889781282,4.60488343,3306.3,3305.3,0.61509147]
[1737889781479,0.1082522,3306.2,3305.3,0.61509147]
[1737889782004,0.1082522,3306.2,3305.3,0.64534128]
[1737889784471,0.1082522,3306.2,3305.5,0.7957]
[1737889787406,0.1082522,3306.2,3305.3,0.61509147]
[1737889787611,0.1082522,3306.2,3305.3,1.41079147]
[1737889788602,0.57956576,3306.2,3305.3,1.41079147]
[1737889788915,0.57956576,3306.2,3305.3,0.61509147]
[1737889789205,0.57956576,3306.2,3305.3,0.64534135]
[1737889789403,0.57956576,3306.2,3305.3,0.61509147]
[1737889790209,0.57956576,3306.2,3305.3,0.64534136]
[1737889790613,0.57956576,3306.2,3305.3,0.61509147]
[1737889790918,0.57956576,3306.2,3305.3,0.64534137]
[1737889792622,5.18444919,3306.2,3305.3,0.64534137]
[1737889793726,5.18444919,3306.2,3305.3,0.61509147]
[1737889793929,5.18444919,3306.2,3305.3,0.64534139]
[1737889794124,5.18444919,3306.2,3305.3,0.61509147]
[1737889796990,5.18444919,3306.2,3305.3,0.6453414]
[1737889797397,5.18444919,3306.2,3305.3,0.61509147]
[1737889799033,0.4024546,3306.1,3305.3,0.61509147]
[1737889799233,0.4024546,3306.1,3304.9,0.03024994]
[1737889799404,0.10807526,3306.0,3304.9,0.03024994]
[1737889799800,4.60488343,3305.9,3304.9,0.03024994]
[1737889800105,4.71292183,3305.9,3304.9,0.03024994]
[1737889800305,5.52445947,3305.9,3304.8,0.03025342]
[1737889800502,5.52445947,3305.9,3305.0,0.60935476]
[1737889801830,4.71292183,3305.9,3305.1,0.80045343]
[1737889804335,0.1080384,3305.9,3305.1,0.80045343]
[1737889804507,3.0,3306.6,3305.1,0.80045343]
[1737889804706,0.10792779,3306.5,3305.1,0.80045343]
[1737889805766,0.10792779,3306.5,3305.1,0.7702]
[1737889805965,0.31079278,3306.4,3305.1,0.7702]
[1737889806268,0.4187132,3306.4,3305.1,0.7702]
[1737889810270,4.60488343,3306.3,3305.1,0.7702]
[1737889810465,4.60488343,3306.3,3305.0,0.60935476]
[1737889810836,0.10792042,3306.2,3305.2,0.7702]
[1737889811029,0.10792042,3306.2,3305.3,0.03025016]
[1737889814393,0.57920081,3306.2,3305.2,0.7702]
[1737889814991,0.57920081,3306.2,3305.3,0.03024876]
[1737889817680,0.10792042,3306.2,3305.3,0.03024876]
[1737889818697,0.10792042,3306.2,3305.2,0.7702]
[1737889819399,0.10792042,3306.2,3305.3,0.03024883]
[1737889823512,0.10792042,3306.2,3305.7,0.6099195]
[1737889824586,0.10792042,3306.2,3305.8,0.03024791]
[1737889824778,4.60488343,3306.3,3305.8,0.03024791]
[1737889824984,0.10808264,3306.1,3305.7,0.6099195]
[1737889825183,4.60488343,3306.3,3305.7,0.6099195]
[1737889825409,0.10808264,3306.0,3305.3,0.03024645]
[1737889825616,4.60488343,3306.3,3305.2,0.7702]
[1737889825818,0.10808264,3305.9,3305.2,0.7702]
[1737889825983,4.60488343,3306.3,3305.2,0.7702]
[1737889826183,0.10808264,3305.8,3305.6,0.61310352]
[1737889826385,4.60488343,3306.3,3305.6,0.61310352]
[1737889826586,0.10808264,3305.7,3305.6,0.61310352]
[1737889826786,4.60488343,3306.3,3305.6,0.61310352]
[1737889826997,0.10808264,3305.7,3305.6,0.61310352]
[1737889827198,4.60488343,3306.3,3305.6,0.61310352]
[1737889827399,0.10808264,3305.7,3305.6,0.61310352]
[1737889827606,4.60488343,3306.3,3305.6,0.61310352]
[1737889827807,0.10808264,3305.7,3305.6,0.61310352]
[1737889828027,4.60488343,3306.3,3305.6,0.61310352]
[1737889828228,4.60488343,3306.3,3305.7,0.0302465]
[1737889829227,4.60488343,3306.3,3305.6,0.61310352]
[1737889829929,4.60488343,3306.3,3305.7,0.82764653]
[1737889831030,3.0,3306.7,3305.7,0.82764653]
[1737889831330,3.0,3307.2,3305.7,0.82764653]
[1737889831531,3.76048834,3307.2,3305.7,0.82764653]
[1737889832627,3.0,3307.2,3305.7,0.82764653]
[1737889832832,4.60488343,3307.3,3305.8,0.55]
[1737889833010,4.60488343,3307.3,3305.9,0.82764001]
[1737889833609,0.17017048,3307.2,3305.9,0.82764001]
[1737889834037,0.17017048,3307.2,3306.4,0.7974]
[1737889834239,0.17017048,3307.2,3306.5,0.0302398]
[1737889835938,0.17017048,3307.2,3306.6,0.7974]
[1737889836251,0.17017048,3307.2,3306.7,0.0302371]
[1737889836440,4.60488343,3307.6,3306.7,0.0302371]
[1737889836627,0.17032525,3307.5,3306.7,0.0302371]
[1737889838763,0.17032525,3307.5,3306.6,0.7974]
[1737889839846,0.17032525,3307.5,3306.9,0.60645094]
[1737889848160,0.17032525,3307.5,3307.0,0.8053]
[1737889852400,0.17032525,3307.5,3307.0,0.83553525]
[1737889855301,0.1653599,3308.1,3307.0,0.83553525]
[1737889855676,0.15901716,3308.0,3307.0,0.83553525]
[1737889856791,0.1653599,3308.1,3307.1,0.55]
[1737889856988,0.1653599,3308.1,3307.2,0.83552728]
[1737889857189,0.1653599,3308.1,3307.4,0.8053]
[1737889857916,0.1653599,3308.1,3307.5,0.8355271]
[1737889858803,0.1653599,3308.1,3307.8,0.61885714]
[1737889859009,0.1653599,3308.1,3307.9,0.83552609]
[1737889859382,0.1653599,3308.1,3307.9,0.8053]
[1737889860312,0.1653599,3308.1,3307.9,0.83552533]
[1737889866029,0.1653599,3308.1,3307.9,0.8053]
[1737889866195,0.1653599,3308.1,3307.2,0.7722]
[1737889867508,4.77024333,3308.1,3307.3,0.61813169]
[1737889867718,4.77024333,3308.1,3307.0,0.7722]
[1737889867931,0.15427269,3308.0,3307.0,0.7722]
[1737889868336,3.15427269,3308.0,3307.2,0.5954036]
[1737889868521,3.64672429,3308.0,3307.2,0.5954036]
[1737889870261,3.64672429,3308.0,3306.8,0.7722]
[1737889870542,3.64672429,3308.0,3307.1,0.59691477]
[1737889879786,3.15427269,3308.0,3307.1,0.59691477]
[1737889879997,0.15427269,3308.0,3307.2,0.78443555]
[1737889880723,0.15427269,3308.0,3307.2,0.7542]
[1737889882279,0.15427269,3308.0,3307.2,0.78443278]
[1737889882977,0.15427269,3308.0,3307.2,0.7542]
[1737889883207,0.15427269,3308.0,3307.2,0.78443278]
[1737889883708,0.15427269,3308.0,3307.2,0.7542]
[1737889884428,0.15427269,3308.0,3307.2,0.78443174]
[1737889885825,0.15427269,3308.0,3307.2,0.7542]
[1737889886931,0.15427269,3308.0,3307.3,0.03023041]
[1737889888853,0.15427269,3308.0,3307.2,0.7542]
[1737889889055,0.15427269,3308.0,3306.8,0.7542]
[1737889890478,0.15427269,3308.0,3306.8,0.78443559]
[1737889890778,0.15427269,3308.0,3306.8,0.7542]
[1737889891178,0.15427269,3308.0,3307.0,0.6014842]
[1737889893387,4.60488343,3307.9,3307.0,0.6014842]
[1737889893758,0.15282052,3307.8,3307.0,0.6014842]
[1737889902740,0.15282052,3307.8,3307.0,1.4259842]
[1737889904693,0.15282052,3307.8,3307.1,0.0302343]
[1737889904895,0.15282052,3307.8,3307.0,1.4259842]
[1737889905206,0.15282052,3307.8,3307.1,0.0302343]
[1737889907284,0.15282052,3307.8,3307.0,1.4259842]
[1737889908019,0.15282052,3307.8,3307.1,0.03023262]
[1737889908433,0.15282052,3307.8,3307.0,1.4259842]
[1737889909010,0.15282052,3307.8,3307.1,0.03023263]
[1737889909421,0.15282052,3307.8,3307.2,0.8245]
[1737889909721,0.15282052,3307.8,3307.3,0.03023076]
[1737889910505,0.15282052,3307.8,3307.4,0.8245]
[1737889910704,0.15282052,3307.8,3307.5,0.03023078]
[1737889911722,0.1653599,3308.1,3307.5,0.03023078]
[1737889911888,0.14742431,3308.0,3307.5,0.03023078]
[1737889912822,0.14742431,3308.0,3307.4,0.8245]
[1737889916390,0.14742431,3308.0,3307.5,0.03022766]
[1737889916688,0.14742431,3308.0,3307.4,0.8245]
[1737889917512,0.14742431,3308.0,3307.6,0.609943]
[1737889920615,0.14742431,3308.0,3307.7,0.03022978]
[1737889924407,0.14742431,3308.0,3307.6,0.609943]
[1737889925006,0.14742431,3308.0,3307.7,0.03022787]
[1737889928633,0.14742431,3308.0,3307.6,0.609943]
[1737889929530,0.14742431,3308.0,3307.7,0.03022796]
[1737889933734,0.14742431,3308.0,3307.6,0.609943]
[1737889934325,0.14742431,3308.0,3307.7,0.03022782]
[1737889939839,0.14742431,3308.0,3307.6,0.609943]
[1737889944517,0.14742431,3308.0,3307.6,0.77665024]
[1737889945153,0.12230873,3307.9,3307.7,0.03022943]
[1737889945323,4.20768124,3308.7,3307.7,0.03022943]
[1737889945528,0.12230873,3308.6,3307.7,0.03022943]
[1737889946137,0.12230873,3308.6,3307.8,0.8299]
[1737889948055,0.12230873,3308.6,3307.8,0.16065502]
[1737889949537,0.12230873,3308.6,3307.6,1.636843]
[1737889949726,4.20768124,3308.7,3307.6,1.636843]
[1737889952053,4.20768124,3308.7,3307.6,0.806943]
[1737889954023,4.20768124,3309.1,3307.7,0.86012791]
[1737889954421,0.12230873,3309.0,3307.9,0.8299]
[1737889954637,0.12230873,3309.0,3308.0,0.86012451]
[1737889955022,4.20768124,3309.1,3308.0,0.86012451]
[1737889955345,0.12230873,3309.0,3308.0,0.86012451]
[1737889956738,0.12230873,3309.0,3308.0,0.8299]
[1737889957140,0.12230873,3309.0,3308.3,0.61778955]
[1737889957540,0.12230873,3309.0,3308.4,0.8299]
[1737889957964,3.0,3309.3,3308.4,0.8299]
[1737889958173,0.1223944,3308.9,3308.4,0.8299]
[1737889958363,3.0,3309.3,3308.4,0.8299]
[1737889958530,0.1223944,3308.8,3308.4,0.8299]
[1737889958726,3.0,3309.3,3308.4,0.8299]
[1737889958927,0.1223944,3308.7,3308.4,0.8299]
[1737889959133,3.0,3309.3,3308.4,0.8299]
[1737889959334,0.1223944,3308.6,3308.4,0.8299]
[1737889959556,3.0,3309.3,3307.9,0.8099]
[1737889959756,0.1223944,3308.5,3308.2,0.61101926]
[1737889960035,3.0,3309.3,3308.2,0.61101926]
[1737889960235,3.72076812,3309.3,3308.2,0.61101926]
[1737889960458,0.1223944,3309.2,3308.2,0.61101926]
[1737889960658,0.1223944,3309.2,3308.3,0.8099]
[1737889961041,0.1223944,3309.2,3308.0,0.8099]
[1737889961247,0.1223944,3309.2,3308.0,1.0069]
[1737889961444,0.85540196,3309.2,3308.0,1.0069]
[1737889961736,5.0630832,3309.2,3308.0,1.0069]
[1737889961936,5.0630832,3309.2,3308.1,0.59344597]
[1737889963363,4.33007564,3309.2,3308.1,0.59344597]
[1737889963561,4.33007564,3309.2,3308.2,0.8099]
[1737889975642,4.33007564,3309.2,3308.6,0.59745424]
[1737889976194,4.33007564,3309.2,3308.2,0.84012318]
[1737889977966,0.1223944,3309.2,3308.2,0.84012318]
[1737889978293,3.0,3309.9,3308.3,0.55]
[1737889978458,0.72076812,3309.8,3308.5,0.61752048]
[1737889978649,0.12252188,3309.8,3308.5,0.61752048]
[1737889982554,3.0,3309.6,3308.5,0.61752048]
[1737889983187,0.12257771,3309.5,3308.5,0.61752048]
[1737889985332,0.12257771,3309.5,3308.3,0.78770072]
[1737889985509,0.85560361,3309.5,3308.4,0.15976007]
[1737889988396,5.06328485,3309.5,3308.4,0.15976007]
[1737889993331,5.06328485,3309.5,3308.4,0.18998381]
[1737889999620,4.33025895,3309.5,3308.5,0.55]
[1737889999821,4.33025895,3309.5,3308.7,0.8321]
[1737890000454,0.12257771,3309.5,3308.7,0.8321]
[1737890000858,3.0,3310.3,3308.7,0.8321]
[1737890001274,0.11860941,3310.2,3309.0,0.61503313]
[1737890001472,3.0,3310.0,3309.0,0.61503313]
[1737890002037,0.11878495,3309.9,3309.0,0.61503313]
[1737890003927,0.11878495,3309.9,3308.7,0.8321]
[1737890005166,0.11878495,3309.9,3308.8,0.60748355]
[1737890011704,0.11878495,3309.9,3308.5,1.3821]
[1737890011993,0.85143157,3309.9,3308.7,0.197]
[1737890012142,3.0,3309.8,3308.7,0.197]
[1737890012477,0.10676229,3309.7,3308.7,0.80235554]
[1737890017404,0.10676229,3309.7,3308.7,0.60535554]
[1737890018602,0.10676229,3309.7,3308.5,0.196]
[1737890018806,0.83820664,3309.7,3308.5,0.196]
[1737890019710,0.83820664,3309.7,3308.4,0.55]
[1737890020395,0.10676229,3309.7,3308.4,0.55]
[1737890021195,0.10676229,3309.7,3308.6,0.60791926]
[1737890031223,0.10676229,3309.7,3308.4,0.196]
[1737890031926,0.10676229,3309.7,3308.5,0.60945427]
[1737890036003,3.0,3309.6,3308.5,0.60945427]
[1737890036231,3.10631693,3309.6,3308.5,0.60945427]
[1737890041777,3.83771675,3309.6,3308.5,0.7661197]
[1737890041941,8.04539799,3309.6,3308.5,0.7661197]
[1737890042759,9.86039799,3309.6,3308.5,0.7661197]
[1737890042940,8.04539799,3309.6,3308.5,0.7661197]
[1737890051887,8.04539799,3309.6,3308.5,0.60945427]
[1737890056913,9.86039799,3309.6,3307.6,0.03022369]
[1737890057221,4.815,3309.2,3307.3,6.82038358]
[1737890057503,0.10612271,3309.1,3307.3,7.42343144]
[1737890057708,0.90582271,3309.1,3307.4,0.84065314]
[1737890059888,1.05754671,3309.1,3307.4,0.84065314]
[1737890060490,3.0,3308.9,3307.3,0.60304786]
[1737890060690,4.20768124,3308.8,3307.3,0.60304786]
[1737890060999,4.31319866,3308.8,3307.3,0.60304786]
[1737890074653,4.31319866,3308.8,3307.3,0.63327984]
[1737890075954,4.31319866,3308.8,3307.3,0.60304786]
[1737890076130,0.73131987,3308.7,3307.4,0.15861479]
[1737890076539,0.10552492,3308.6,3307.4,0.15861479]
[1737890077553,3.0,3308.5,3307.4,0.15861479]
[1737890078276,0.10552492,3308.4,3307.4,0.15861479]
[1737890086660,0.09000224,3308.4,3307.4,0.15861479]
[1737890095671,0.09000224,3308.4,3307.3,0.60304786]
[1737890101375,4.20768124,3308.3,3307.3,0.60304786]
[1737890101888,0.10495143,3308.2,3307.3,0.60304786]
[1737890102184,4.31263267,3308.2,3307.3,0.60304786]
[1737890113641,3.0,3308.1,3306.5,0.9897]
[1737890113946,4.20768124,3308.0,3306.5,0.9897]
[1737890114239,4.20768124,3308.0,3307.0,0.61767657]
[1737890114420,0.10485423,3307.9,3307.0,0.61767657]
[1737890114952,0.10485423,3307.9,3306.5,0.9897]
[1737890115140,3.10485423,3307.9,3306.5,0.9897]
[1737890115333,4.1792341,3307.9,3306.9,0.61658826]
[1737890116347,8.38691534,3307.9,3306.9,0.61658826]
[1737890118333,7.31253547,3307.9,3306.9,0.61658826]
[1737890118529,4.31253547,3307.9,3307.1,0.55]
[1737890120818,4.31253547,3307.9,3307.1,0.58023355]
[1737890121014,4.31253547,3307.9,3307.1,0.55]
[1737890122252,0.10485423,3307.9,3307.1,0.55]
[1737890122451,4.20768124,3308.4,3307.1,0.55]
[1737890122650,0.10242769,3307.8,3307.1,0.74989218]
[1737890122827,4.20768124,3308.4,3307.1,0.74989218]
[1737890123159,0.10242769,3308.3,3307.1,0.74989218]
[1737890125248,0.10242769,3308.3,3307.1,0.19989218]
[1737890125437,0.10242769,3308.3,3306.9,0.81258826]
[1737890125951,0.10242769,3308.3,3306.9,0.61658826]
[1737890126153,3.10242769,3308.3,3306.5,0.196]
[1737890126852,3.69941734,3308.3,3306.7,0.61240714]
[1737890128057,4.20768124,3308.2,3306.7,0.61240714]
[1737890128224,3.0,3308.0,3306.7,0.61240714]
[1737890128821,0.10244263,3307.9,3306.7,0.61240714]
[1737890132343,0.14638749,3307.9,3306.7,0.61240714]
[1737890134148,3.0,3307.8,3306.7,0.61240714]
[1737890134570,0.14631646,3307.7,3306.7,0.61240714]
[1737890135149,0.14272409,3307.7,3306.7,0.61240714]
[1737890146983,0.14272409,3307.7,3306.9,0.55]
[1737890147378,4.20768124,3307.9,3306.9,0.55]
[1737890147584,0.14615933,3307.6,3306.9,0.55]
[1737890147752,4.20768124,3307.9,3306.9,0.55]
[1737890147948,0.14615933,3307.5,3306.9,0.55]
[1737890148149,4.20768124,3307.9,3306.9,0.55]
[1737890148350,0.1461668,3307.4,3306.9,0.55]
[1737890148584,3.0,3308.7,3307.1,0.8179]